[Event "FIDE Women World Blitz 2021"]
[Site "Warsaw"]
[Date "2021.12.29"]
[Round "6.8"]
[White "Nur-Mukhametova, Alisa"]
[Black "Da Silva, Cibele Florencio"]
[Result "1-0"]
[ECO "D02"]
[WhiteElo "2225"]
[BlackElo "1405"]
[Annotator "NA"]
[PlyCount "32"]
[EventDate "2021.12.29"]
[EventType "swiss"]
[EventCountry "POL"]
[Tiebreak "Cut1 Buchholz"]
[SourceTitle "playchess.com"]
[Source "ChessBase"]
[SourceQuality "1"]
[TimeControl "180+2"]

1. Nf3 {[%emt 0:00:03]} d5 {[%emt 0:00:02]} 2. g3 {[%emt 0:00:01]} Nf6 {
[%emt 0:00:01]} 3. Bg2 {[%emt 0:00:01]} Nc6 {[%emt 0:00:02]} 4. d4 {[%emt 0:00:
02]} e6 {[%emt 0:00:06]} 5. O-O {[%emt 0:00:03]} h6 {[%emt 0:00:06]} 6. Nbd2 {
[%emt 0:00:15]} Bd6 {[%emt 0:00:04]} 7. c4 {[%emt 0:00:17]} g5 {[%emt 0:00:17]}
8. e3 {[%emt 0:00:33]} Qe7 {[%emt 0:00:16]} 9. c5 {[%emt 0:00:05]} Bxc5 {
[%emt 0:00:31]} 10. dxc5 {[%emt 0:00:02]} Qxc5 {[%emt 0:00:04]} 11. b3 {
[%emt 0:00:08]} Rg8 {[%emt 0:00:06]} 12. Bb2 {[%emt 0:00:02]} Nh5 {[%emt 0:00:
35]} 13. Nd4 {[%emt 0:00:10]} Ng7 {[%emt 0:00:17]} 14. Rc1 {[%emt 0:00:05]} Qd6
{[%emt 0:00:07]} 15. Nxc6 {[%emt 0:00:16]} bxc6 {[%emt 0:00:03]} 16. Nc4 {
[%emt 0:00:15]} Qd7 {[%emt 0:00:17]} 1-0

[Event "FIDE Women World Blitz 2021"]
[Site "Warsaw"]
[Date "2021.12.29"]
[Round "6.9"]
[White "Vaishali R"]
[Black "Efroimski, Marsel"]
[Result "1-0"]
[ECO "D02"]
[WhiteElo "2405"]
[BlackElo "2419"]
[Annotator "NA"]
[PlyCount "95"]
[EventDate "2021.12.29"]
[EventType "swiss"]
[EventCountry "POL"]
[Tiebreak "Cut1 Buchholz"]
[SourceTitle "playchess.com"]
[Source "ChessBase"]
[SourceQuality "1"]
[TimeControl "180+2"]

1. d4 {[%emt 0:00:02]} e6 {[%emt 0:00:00]} 2. Bf4 {[%emt 0:00:02]} d5 {[%emt 0:
00:01]} 3. Nf3 {[%emt 0:00:01]} Nf6 {[%emt 0:00:01]} 4. e3 {[%emt 0:00:02]} Bd6
{[%emt 0:00:01]} 5. Nbd2 {[%emt 0:00:04]} c5 {[%emt 0:00:12]} 6. c3 {[%emt 0:
00:27]} O-O {[%emt 0:00:11]} 7. Bd3 {[%emt 0:00:06]} Qc7 {[%emt 0:00:03]} 8.
Bg3 {[%emt 0:00:08]} Nbd7 {[%emt 0:00:11]} 9. e4 {[%emt 0:00:18]} dxe4 {
[%emt 0:00:03]} 10. Nxe4 {[%emt 0:00:01]} Nxe4 {[%emt 0:00:01]} 11. Bxe4 {
[%emt 0:00:01]} Nf6 {[%emt 0:00:01]} 12. Bc2 {[%emt 0:00:11]} cxd4 {[%emt 0:01:
15]} 13. Nxd4 {[%emt 0:00:18]} Bxg3 {[%emt 0:00:07]} 14. hxg3 {[%emt 0:00:01]}
Qe5+ {[%emt 0:00:01]} 15. Kf1 {[%emt 0:00:08]} b6 {[%emt 0:00:02]} 16. Qf3 {
[%emt 0:00:10]} Ba6+ {[%emt 0:00:12]} 17. Kg1 {[%emt 0:00:01]} h6 {[%emt 0:00:
10]} 18. Nc6 {[%emt 0:00:20]} Qc7 {[%emt 0:00:05]} 19. Nd4 {[%emt 0:00:37]} Bb7
{[%emt 0:00:06]} 20. Qe2 {[%emt 0:00:10]} Rad8 {[%emt 0:00:04]} 21. Re1 {
[%emt 0:00:02]} Bd5 {[%emt 0:00:11]} 22. a3 {[%emt 0:00:09]} Rc8 {[%emt 0:00:
17]} 23. Rh4 {[%emt 0:00:03]} Rfd8 {[%emt 0:00:15]} 24. Qe3 {[%emt 0:00:04]}
Qc5 {[%emt 0:00:03]} 25. g4 {[%emt 0:00:05]} Bb7 {[%emt 0:00:01]} 26. Bb1 {
[%emt 0:00:15]} Qg5 {[%emt 0:00:03]} 27. Qg3 {[%emt 0:00:01]} Nd5 {[%emt 0:00:
06]} 28. Rh5 {[%emt 0:00:04]} Qd2 {[%emt 0:00:08]} 29. Rf1 {[%emt 0:00:04]} Ba6
{[%emt 0:00:01]} 30. g5 {[%emt 0:00:03]} Nf4 {[%emt 0:00:05]} 31. Rh4 {[%emt 0:
00:02]} Ng6 {[%emt 0:00:02]} 32. gxh6 {[%emt 0:00:02]} Bxf1 33. Bxg6 Qc1 {
[%emt 0:00:06]} 34. Bxf7+ {[%emt 0:00:03]} Kf8 {[%emt 0:00:01]} 35. Qxg7+ {
[%emt 0:00:01]} Ke7 36. Bxe6+ {[%emt 0:00:02]} Kd6 {[%emt 0:00:01]} 37. Kh2 {
[%emt 0:00:02]} Qd2 {[%emt 0:00:04]} 38. Bh3 {[%emt 0:00:03]} Kc5 {[%emt 0:00:
03]} 39. Ne6+ {[%emt 0:00:02]} Kb5 {[%emt 0:00:01]} 40. Nxd8 {[%emt 0:00:03]}
Qd6+ {[%emt 0:00:03]} 41. f4 {[%emt 0:00:03]} Rxd8 {[%emt 0:00:01]} 42. Qe5+ {
[%emt 0:00:01]} Qxe5 43. fxe5 {[%emt 0:00:00]} Rh8 {[%emt 0:00:03]} 44. h7 {
[%emt 0:00:01]} Bd3 {[%emt 0:00:01]} 45. b4 {[%emt 0:00:02]} Ka4 {[%emt 0:00:
03]} 46. e6 {[%emt 0:00:01]} Kxa3 {[%emt 0:00:02]} 47. e7 {[%emt 0:00:01]} Bxh7
{[%emt 0:00:02]} 48. Rxh7 {[%emt 0:00:01]} 1-0

[Event "FIDE Women World Blitz 2021"]
[Site "Warsaw"]
[Date "2021.12.29"]
[Round "6.9"]
[White "Malicka, Maria"]
[Black "Kazarian, Anna-Maja"]
[Result "0-1"]
[ECO "C42"]
[WhiteElo "2307"]
[BlackElo "2138"]
[Annotator "NA"]
[PlyCount "146"]
[EventDate "2021.12.29"]
[EventType "swiss"]
[EventCountry "POL"]
[Tiebreak "Cut1 Buchholz"]
[SourceTitle "playchess.com"]
[Source "ChessBase"]
[SourceQuality "1"]
[TimeControl "180+2"]

1. e4 {[%emt 0:00:01]} e6 {[%emt 0:00:00]} 2. d4 {[%emt 0:00:01]} d5 {[%emt 0:
00:01]} 3. exd5 {[%emt 0:00:02]} exd5 {[%emt 0:00:01]} 4. Nf3 {[%emt 0:00:01]}
Nf6 {[%emt 0:00:01]} 5. Bd3 {[%emt 0:00:01]} Bd6 {[%emt 0:00:06]} 6. Qe2+ {
[%emt 0:00:03]} Qe7 {[%emt 0:00:03]} 7. Qxe7+ {[%emt 0:00:03]} Bxe7 {[%emt 0:
00:01]} 8. O-O {[%emt 0:00:05]} O-O {[%emt 0:00:06]} 9. Re1 {[%emt 0:00:01]}
Bd6 {[%emt 0:00:10]} 10. Bg5 {[%emt 0:00:05]} Nbd7 {[%emt 0:00:01]} 11. Nc3 {
[%emt 0:00:07]} c6 {[%emt 0:00:01]} 12. Ne5 {[%emt 0:00:07]} h6 {[%emt 0:00:21]
} 13. Bh4 {[%emt 0:00:28]} Bb4 {[%emt 0:00:44]} 14. a3 {[%emt 0:00:15]} Bxc3 {
[%emt 0:00:02]} 15. bxc3 {[%emt 0:00:01]} g5 {[%emt 0:00:06]} 16. Bg3 {[%emt 0:
00:04]} Nh5 {[%emt 0:00:02]} 17. Nxd7 {[%emt 0:00:05]} Bxd7 {[%emt 0:00:01]}
18. Bd6 {[%emt 0:00:01]} Rfe8 {[%emt 0:00:01]} 19. c4 {[%emt 0:00:16]} Nf6 {
[%emt 0:00:40]} 20. f3 {[%emt 0:00:23]} dxc4 {[%emt 0:00:45]} 21. Bxc4 {
[%emt 0:00:01]} Nd5 {[%emt 0:00:01]} 22. Kf2 {[%emt 0:00:12]} Re6 {[%emt 0:00:
06]} 23. Be5 {[%emt 0:00:21]} Rae8 {[%emt 0:00:06]} 24. Rab1 {[%emt 0:00:02]}
b5 {[%emt 0:00:01]} 25. Bd3 {[%emt 0:00:07]} f6 {[%emt 0:00:06]} 26. Bg3 {
[%emt 0:00:06]} Kf7 {[%emt 0:00:03]} 27. Rxe6 {[%emt 0:00:10]} Bxe6 {[%emt 0:
00:02]} 28. c4 {[%emt 0:00:09]} Nc3 {[%emt 0:00:14]} 29. Rc1 {[%emt 0:00:02]}
bxc4 {[%emt 0:00:02]} 30. Bf1 {[%emt 0:00:09]} Nb5 {[%emt 0:00:02]} 31. Bxc4 {
[%emt 0:00:02]} Nxd4 {[%emt 0:00:04]} 32. Bxe6+ {[%emt 0:00:07]} Rxe6 {[%emt 0:
00:01]} 33. Rc4 {[%emt 0:00:01]} Nb5 {[%emt 0:00:01]} 34. a4 {[%emt 0:00:02]}
Na3 {[%emt 0:00:02]} 35. Rc3 {[%emt 0:00:03]} Nb1 {[%emt 0:00:01]} 36. Rb3 {
[%emt 0:00:03]} Nd2 {[%emt 0:00:01]} 37. Rb7+ {[%emt 0:00:02]} Re7 {[%emt 0:00:
01]} 38. Rb2 {[%emt 0:00:02]} Nc4 {[%emt 0:00:01]} 39. Rc2 {[%emt 0:00:01]} Na5
{[%emt 0:00:04]} 40. Rc5 {[%emt 0:00:01]} Nb3 {[%emt 0:00:04]} 41. Rxc6 {
[%emt 0:00:02]} Nd4 {[%emt 0:00:01]} 42. Rc4 {[%emt 0:00:03]} Nf5 {[%emt 0:00:
02]} 43. Bb8 {[%emt 0:00:02]} a6 {[%emt 0:00:04]} 44. Rc6 {[%emt 0:00:03]} Rb7
{[%emt 0:00:03]} 45. Bg3 {[%emt 0:00:08]} Rb2+ {[%emt 0:00:01]} 46. Ke1 {
[%emt 0:00:02]} a5 {[%emt 0:00:02]} 47. Rc5 {[%emt 0:00:03]} Ne3 {[%emt 0:00:
02]} 48. Rxa5 {[%emt 0:00:02]} Nxg2+ {[%emt 0:00:02]} 49. Kf1 {[%emt 0:00:04]}
Ne3+ {[%emt 0:00:01]} 50. Kg1 {[%emt 0:00:01]} f5 {[%emt 0:00:01]} 51. Re5 {
[%emt 0:00:03]} f4 {[%emt 0:00:00]} 52. Bf2 {[%emt 0:00:03]} Rb1+ {[%emt 0:00:
01]} 53. Be1 {[%emt 0:00:02]} Rxe1+ {[%emt 0:00:01]} 54. Kf2 {[%emt 0:00:00]}
Ra1 {[%emt 0:00:01]} 55. a5 {[%emt 0:00:03]} Kf6 {[%emt 0:00:01]} 56. Rb5 {
[%emt 0:00:01]} Ra2+ {[%emt 0:00:05]} 57. Kg1 {[%emt 0:00:00]} h5 {[%emt 0:00:
06]} 58. Rb6+ {[%emt 0:00:01]} Kf5 {[%emt 0:00:01]} 59. Rb5+ {[%emt 0:00:00]}
Kf6 {[%emt 0:00:01]} 60. Rb6+ Ke5 {[%emt 0:00:01]} 61. Rb5+ {[%emt 0:00:02]}
Nd5 {[%emt 0:00:00]} 62. Rc5 {[%emt 0:00:04]} Kd4 {[%emt 0:00:01]} 63. Rb5 {
[%emt 0:00:01]} Kc4 {[%emt 0:00:01]} 64. Rb8 {[%emt 0:00:02]} Rxa5 {[%emt 0:00:
01]} 65. Rh8 {[%emt 0:00:03]} h4 {[%emt 0:00:01]} 66. Rg8 {[%emt 0:00:01]} Ne3
{[%emt 0:00:01]} 67. Rc8+ {[%emt 0:00:02]} Kd3 {[%emt 0:00:02]} 68. h3 {
[%emt 0:00:04]} Ke2 {[%emt 0:00:01]} 69. Kh2 {[%emt 0:00:12]} Kxf3 {[%emt 0:00:
01]} 70. Rc1 {[%emt 0:00:04]} Ra2+ {[%emt 0:00:09]} 71. Kh1 {[%emt 0:00:02]} g4
{[%emt 0:00:07]} 72. Rg1 {[%emt 0:00:10]} gxh3 {[%emt 0:00:03]} 73. Rc1 {
[%emt 0:00:03]} Ng4 {[%emt 0:00:02]} 0-1

[Event "FIDE Women World Blitz 2021"]
[Site "Warsaw"]
[Date "2021.12.29"]
[Round "6.10"]
[White "Efimenko, Maria"]
[Black "Antolak, Julia"]
[Result "1/2-1/2"]
[ECO "B22"]
[WhiteElo "2207"]
[BlackElo "2334"]
[Annotator "NA"]
[PlyCount "84"]
[EventDate "2021.12.29"]
[EventType "swiss"]
[EventCountry "POL"]
[Tiebreak "Cut1 Buchholz"]
[SourceTitle "playchess.com"]
[Source "ChessBase"]
[SourceQuality "1"]
[TimeControl "180+2"]

1. e4 {[%emt 0:00:01]} c5 {[%emt 0:00:01]} 2. c3 {[%emt 0:00:01]} d5 {[%emt 0:
00:01]} 3. exd5 {[%emt 0:00:01]} Qxd5 {[%emt 0:00:01]} 4. d4 {[%emt 0:00:01]}
Nc6 {[%emt 0:00:01]} 5. Nf3 {[%emt 0:00:03]} Bf5 {[%emt 0:00:01]} 6. Na3 {
[%emt 0:00:03]} cxd4 {[%emt 0:00:02]} 7. cxd4 {[%emt 0:00:51]} e6 {[%emt 0:00:
30]} 8. Nb5 {[%emt 0:00:29]} Rc8 {[%emt 0:00:10]} 9. Be2 {[%emt 0:00:03]} Bb4+
{[%emt 0:00:07]} 10. Bd2 {[%emt 0:00:04]} Bxd2+ {[%emt 0:00:04]} 11. Qxd2 {
[%emt 0:00:01]} Nf6 {[%emt 0:00:06]} 12. Nc3 {[%emt 0:00:08]} Qd7 {[%emt 0:00:
08]} 13. O-O {[%emt 0:00:02]} O-O {[%emt 0:00:04]} 14. Rfd1 {[%emt 0:00:01]}
Rfd8 {[%emt 0:00:05]} 15. Qf4 {[%emt 0:00:04]} Nd5 {[%emt 0:00:14]} 16. Qg3 {
[%emt 0:00:18]} Bg6 {[%emt 0:00:08]} 17. h4 {[%emt 0:00:01]} Nce7 {[%emt 0:00:
25]} 18. h5 {[%emt 0:00:06]} Bf5 {[%emt 0:00:20]} 19. Ne5 {[%emt 0:00:06]} Nxc3
{[%emt 0:00:16]} 20. bxc3 {[%emt 0:00:03]} Qc7 {[%emt 0:00:00]} 21. Rac1 {
[%emt 0:00:21]} Nd5 {[%emt 0:00:01]} 22. c4 {[%emt 0:00:02]} Nf6 {[%emt 0:00:
01]} 23. h6 {[%emt 0:00:03]} g6 {[%emt 0:00:05]} 24. Qg5 {[%emt 0:00:01]} Ne4 {
[%emt 0:00:10]} 25. Qh4 {[%emt 0:00:05]} f6 {[%emt 0:00:14]} 26. f3 {[%emt 0:
00:05]} Ng5 {[%emt 0:00:14]} 27. Ng4 {[%emt 0:00:01]} Bxg4 28. Qxg4 {[%emt 0:
00:01]} Qe7 {[%emt 0:00:08]} 29. c5 {[%emt 0:00:05]} Nf7 {[%emt 0:00:03]} 30.
Bc4 {[%emt 0:00:02]} f5 {[%emt 0:00:05]} 31. Qf4 {[%emt 0:00:06]} Kf8 {[%emt 0:
00:12]} 32. Re1 {[%emt 0:00:02]} Qf6 {[%emt 0:00:03]} 33. Bxe6 {[%emt 0:00:03]}
Rxd4 {[%emt 0:00:04]} 34. Qe3 {[%emt 0:00:09]} Rcd8 {[%emt 0:00:01]} 35. Qb3 {
[%emt 0:00:02]} Nxh6 {[%emt 0:00:02]} 36. Qxb7 {[%emt 0:00:02]} Re8 {[%emt 0:
00:02]} 37. Bb3 {[%emt 0:00:04]} Rdd8 {[%emt 0:00:02]} 38. c6 {[%emt 0:00:02]}
Qd4+ {[%emt 0:00:02]} 39. Kf1 {[%emt 0:00:03]} Qd3+ {[%emt 0:00:01]} 40. Kg1 {
[%emt 0:00:02]} Qd4+ {[%emt 0:00:01]} 41. Kf1 {[%emt 0:00:00]} Qd3+ {[%emt 0:
00:02]} 42. Kg1 {[%emt 0:00:01]} Qd4+ {[%emt 0:00:02]} 1/2-1/2

[Event "FIDE Women World Blitz 2021"]
[Site "Warsaw"]
[Date "2021.12.29"]
[Round "6.10"]
[White "Szczotka, Klara"]
[Black "Utiatskaja, Irina"]
[Result "0-1"]
[ECO "B52"]
[WhiteElo "1584"]
[BlackElo "2184"]
[Annotator "NA"]
[PlyCount "114"]
[EventDate "2021.12.29"]
[EventType "swiss"]
[EventCountry "POL"]
[Tiebreak "Cut1 Buchholz"]
[SourceTitle "playchess.com"]
[Source "ChessBase"]
[SourceQuality "1"]
[TimeControl "180+2"]

1. e4 {[%emt 0:00:01]} c5 {[%emt 0:00:01]} 2. Nf3 {[%emt 0:00:01]} d6 {[%emt 0:
00:01]} 3. Bb5+ {[%emt 0:00:04]} Bd7 {[%emt 0:00:04]} 4. Bxd7+ {[%emt 0:00:01]}
Qxd7 {[%emt 0:00:02]} 5. c4 {[%emt 0:00:02]} g6 {[%emt 0:00:07]} 6. O-O {
[%emt 0:00:06]} Bg7 {[%emt 0:00:01]} 7. d4 {[%emt 0:00:01]} cxd4 {[%emt 0:00:
02]} 8. Nxd4 {[%emt 0:00:01]} Nc6 {[%emt 0:00:04]} 9. Be3 {[%emt 0:00:02]} Nf6
{[%emt 0:00:08]} 10. f3 {[%emt 0:00:01]} O-O {[%emt 0:00:01]} 11. Nc3 {[%emt 0:
00:01]} Rfc8 {[%emt 0:00:15]} 12. b3 {[%emt 0:00:10]} a6 {[%emt 0:00:09]} 13.
a4 {[%emt 0:00:01]} Qd8 {[%emt 0:00:08]} 14. Rb1 {[%emt 0:00:07]} Nd7 {[%emt 0:
00:03]} 15. Kh1 {[%emt 0:00:22]} Nc5 {[%emt 0:00:19]} 16. Qd2 {[%emt 0:00:23]}
Ne6 {[%emt 0:00:01]} 17. Nxe6 {[%emt 0:00:20]} fxe6 {[%emt 0:00:01]} 18. Ne2 {
[%emt 0:00:01]} Qf8 {[%emt 0:00:32]} 19. Rfd1 {[%emt 0:00:06]} Qf6 {[%emt 0:00:
11]} 20. Bg5 {[%emt 0:00:17]} Qf7 {[%emt 0:00:01]} 21. Qe3 {[%emt 0:00:23]}
Rab8 {[%emt 0:00:12]} 22. Rbc1 {[%emt 0:00:33]} e5 {[%emt 0:00:15]} 23. Rd5 {
[%emt 0:00:25]} b6 {[%emt 0:00:12]} 24. Rcd1 {[%emt 0:00:07]} Nd4 {[%emt 0:00:
02]} 25. Nxd4 {[%emt 0:00:03]} exd4 {[%emt 0:00:01]} 26. Qf4 {[%emt 0:00:06]}
Qxf4 {[%emt 0:00:16]} 27. Bxf4 {[%emt 0:00:01]} Rc5 {[%emt 0:00:21]} 28. Bg5 {
[%emt 0:00:06]} Rxd5 {[%emt 0:00:03]} 29. exd5 {[%emt 0:00:01]} Kf7 {[%emt 0:
00:01]} 30. Bd2 {[%emt 0:00:03]} b5 {[%emt 0:00:03]} 31. axb5 {[%emt 0:00:03]}
axb5 {[%emt 0:00:01]} 32. Bc1 {[%emt 0:00:04]} bxc4 {[%emt 0:00:01]} 33. bxc4 {
[%emt 0:00:00]} Rb4 {[%emt 0:00:04]} 34. Kg1 {[%emt 0:00:02]} Rxc4 {[%emt 0:00:
01]} 35. Kf2 {[%emt 0:00:01]} Rc5 {[%emt 0:00:02]} 36. Ke2 {[%emt 0:00:02]}
Rxd5 {[%emt 0:00:01]} 37. Kd3 {[%emt 0:00:01]} Ra5 {[%emt 0:00:03]} 38. Bb2 {
[%emt 0:00:01]} Ra2 {[%emt 0:00:03]} 39. Bxd4 {[%emt 0:00:02]} Bxd4 {[%emt 0:
00:03]} 40. Kxd4 {[%emt 0:00:01]} Rxg2 {[%emt 0:00:01]} 41. Rh1 {[%emt 0:00:02]
} Ke6 {[%emt 0:00:03]} 42. Ke4 {[%emt 0:00:02]} d5+ {[%emt 0:00:01]} 43. Kd4 {
[%emt 0:00:01]} Kd6 {[%emt 0:00:00]} 44. h4 {[%emt 0:00:03]} e5+ {[%emt 0:00:
02]} 45. Ke3 {[%emt 0:00:00]} d4+ {[%emt 0:00:01]} 46. Ke4 {[%emt 0:00:01]}
Re2+ {[%emt 0:00:01]} 47. Kd3 {[%emt 0:00:01]} Re3+ {[%emt 0:00:01]} 48. Kd2 {
[%emt 0:00:01]} Rxf3 {[%emt 0:00:01]} 49. h5 {[%emt 0:00:02]} g5 {[%emt 0:00:
01]} 50. h6 {[%emt 0:00:01]} Kd5 {[%emt 0:00:01]} 51. Rh5 {[%emt 0:00:01]} Rg3
{[%emt 0:00:02]} 52. Rh2 {[%emt 0:00:03]} e4 {[%emt 0:00:01]} 53. Re2 {[%emt 0:
00:02]} d3 {[%emt 0:00:02]} 54. Rh2 {[%emt 0:00:02]} Kd4 {[%emt 0:00:02]} 55.
Rh1 {[%emt 0:00:10]} Rg2+ {[%emt 0:00:01]} 56. Kc1 {[%emt 0:00:01]} e3 {
[%emt 0:00:01]} 57. Rf1 {[%emt 0:00:03]} e2 {[%emt 0:00:05]} 0-1

[Event "FIDE Women World Blitz 2021"]
[Site "Warsaw"]
[Date "2021.12.29"]
[Round "6.11"]
[White "Beydullayeva, Govhar"]
[Black "Budkiewicz, Magdalena"]
[Result "1-0"]
[ECO "E69"]
[WhiteElo "2278"]
[BlackElo "1624"]
[Annotator "NA"]
[PlyCount "95"]
[EventDate "2021.12.29"]
[EventType "swiss"]
[EventCountry "POL"]
[Tiebreak "Cut1 Buchholz"]
[SourceTitle "playchess.com"]
[Source "ChessBase"]
[SourceQuality "1"]
[TimeControl "180+2"]

1. Nf3 {[%emt 0:00:00]} Nf6 {[%emt 0:00:01]} 2. c4 {[%emt 0:00:01]} g6 {
[%emt 0:00:01]} 3. d4 {[%emt 0:00:01]} Bg7 {[%emt 0:00:01]} 4. g3 {[%emt 0:00:
00]} d6 {[%emt 0:00:00]} 5. Nc3 {[%emt 0:00:02]} O-O {[%emt 0:00:02]} 6. Bg2 {
[%emt 0:00:00]} Nbd7 {[%emt 0:00:06]} 7. O-O {[%emt 0:00:02]} e5 {[%emt 0:00:
02]} 8. e4 {[%emt 0:00:01]} c6 {[%emt 0:00:13]} 9. h3 {[%emt 0:00:02]} Re8 {
[%emt 0:00:11]} 10. Be3 {[%emt 0:00:01]} Qc7 {[%emt 0:00:14]} 11. Qc2 {[%emt 0:
00:11]} Nh5 {[%emt 0:00:19]} 12. Rad1 {[%emt 0:00:06]} Nb6 {[%emt 0:00:16]} 13.
b3 {[%emt 0:00:14]} Bd7 {[%emt 0:00:12]} 14. Rfe1 {[%emt 0:00:09]} Rad8 {
[%emt 0:00:01]} 15. dxe5 {[%emt 0:00:31]} dxe5 {[%emt 0:00:04]} 16. c5 {
[%emt 0:00:02]} Nc8 {[%emt 0:00:10]} 17. Rd2 {[%emt 0:00:02]} Ne7 {[%emt 0:00:
06]} 18. Red1 {[%emt 0:00:03]} Be6 {[%emt 0:00:11]} 19. Rd6 {[%emt 0:00:14]}
Nc8 {[%emt 0:00:10]} 20. R6d3 {[%emt 0:00:07]} f5 {[%emt 0:00:38]} 21. Ng5 {
[%emt 0:00:32]} Rxd3 {[%emt 0:00:23]} 22. Qxd3 {[%emt 0:00:13]} Bf7 {[%emt 0:
00:09]} 23. exf5 {[%emt 0:00:37]} Ne7 {[%emt 0:00:04]} 24. Nxf7 {[%emt 0:00:08]
} Kxf7 {[%emt 0:00:01]} 25. Qc4+ {[%emt 0:00:06]} Kf8 {[%emt 0:00:04]} 26. fxg6
{[%emt 0:00:02]} hxg6 {[%emt 0:00:04]} 27. Bg5 {[%emt 0:00:07]} Nf6 {[%emt 0:
00:01]} 28. Ne4 {[%emt 0:00:06]} Nxe4 {[%emt 0:00:05]} 29. Bxe4 {[%emt 0:00:01]
} Nf5 {[%emt 0:00:04]} 30. Bxf5 {[%emt 0:00:05]} gxf5 {[%emt 0:00:01]} 31. Rd6
{[%emt 0:00:02]} Qf7 {[%emt 0:00:01]} 32. Qxf7+ {[%emt 0:00:03]} Kxf7 {[%emt 0:
00:01]} 33. Rd7+ {[%emt 0:00:01]} Kg6 {[%emt 0:00:01]} 34. h4 {[%emt 0:00:05]}
b6 {[%emt 0:00:03]} 35. Rxa7 {[%emt 0:00:03]} bxc5 {[%emt 0:00:02]} 36. Rc7 {
[%emt 0:00:02]} Re6 {[%emt 0:00:01]} 37. a4 {[%emt 0:00:00]} Bf8 {[%emt 0:00:
05]} 38. a5 {[%emt 0:00:01]} e4 {[%emt 0:00:06]} 39. a6 {[%emt 0:00:02]} Re8 {
[%emt 0:00:02]} 40. a7 {[%emt 0:00:05]} Ra8 {[%emt 0:00:01]} 41. Bf4 {[%emt 0:
00:02]} Bg7 {[%emt 0:00:02]} 42. Rb7 {[%emt 0:00:05]} Bd4 {[%emt 0:00:02]} 43.
Bb8 {[%emt 0:00:04]} c4 {[%emt 0:00:03]} 44. bxc4 {[%emt 0:00:01]} Bc5 {
[%emt 0:00:00]} 45. Rc7 {[%emt 0:00:03]} Bd4 {[%emt 0:00:02]} 46. Rxc6+ {
[%emt 0:00:01]} Kf7 {[%emt 0:00:01]} 47. h5 {[%emt 0:00:02]} Bxa7 {[%emt 0:00:
01]} 48. Rc7+ {[%emt 0:00:01]} 1-0

[Event "FIDE Women World Blitz 2021"]
[Site "Warsaw"]
[Date "2021.12.29"]
[Round "6.11"]
[White "Semenova, Elena"]
[Black "Kamalidenova, Meruert"]
[Result "0-1"]
[ECO "B52"]
[WhiteElo "2233"]
[BlackElo "2339"]
[Annotator "NA"]
[PlyCount "55"]
[EventDate "2021.12.29"]
[EventType "swiss"]
[EventCountry "POL"]
[Tiebreak "Cut1 Buchholz"]
[SourceTitle "playchess.com"]
[Source "ChessBase"]
[SourceQuality "1"]
[TimeControl "180+2"]

1. e4 {[%emt 0:00:01]} c5 {[%emt 0:00:01]} 2. Nf3 {[%emt 0:00:01]} d6 {[%emt 0:
00:01]} 3. Bb5+ {[%emt 0:00:01]} Bd7 {[%emt 0:00:02]} 4. Bxd7+ {[%emt 0:00:02]}
Nxd7 {[%emt 0:00:01]} 5. O-O {[%emt 0:00:02]} Ngf6 {[%emt 0:00:02]} 6. Qe2 {
[%emt 0:00:01]} e6 {[%emt 0:00:02]} 7. c3 {[%emt 0:00:01]} Be7 {[%emt 0:00:03]}
8. d4 {[%emt 0:00:01]} O-O {[%emt 0:00:06]} 9. Rd1 {[%emt 0:00:03]} Qc7 {
[%emt 0:00:07]} 10. Na3 {[%emt 0:00:07]} a6 {[%emt 0:00:02]} 11. Nc2 {[%emt 0:
00:04]} b5 {[%emt 0:00:04]} 12. h3 {[%emt 0:00:19]} Rfc8 {[%emt 0:00:05]} 13.
Bg5 {[%emt 0:00:14]} cxd4 {[%emt 0:00:04]} 14. Ncxd4 {[%emt 0:00:02]} h6 {
[%emt 0:00:03]} 15. Bh4 {[%emt 0:00:03]} Nc5 {[%emt 0:00:06]} 16. e5 {[%emt 0:
00:20]} Nd5 {[%emt 0:00:27]} 17. Bg3 {[%emt 0:00:22]} dxe5 {[%emt 0:00:12]} 18.
Bxe5 {[%emt 0:00:08]} Bd6 {[%emt 0:00:04]} 19. Bxd6 {[%emt 0:00:18]} Qxd6 {
[%emt 0:00:02]} 20. Qe5 {[%emt 0:00:07]} Qxe5 21. Nxe5 {[%emt 0:00:01]} f6 {
[%emt 0:00:37]} 22. Nd3 {[%emt 0:00:13]} Nxd3 {[%emt 0:00:07]} 23. Rxd3 {
[%emt 0:00:01]} Nf4 {[%emt 0:00:02]} 24. Rd2 {[%emt 0:00:07]} Kf7 {[%emt 0:00:
07]} 25. Rad1 {[%emt 0:00:01]} Rd8 {[%emt 0:00:04]} 26. Nc6 {[%emt 0:00:18]}
Rxd2 {[%emt 0:00:05]} 27. Rxd2 {[%emt 0:00:01]} Nd5 {[%emt 0:00:02]} 28. Kf1 {
[%emt 0:00:10]} 0-1